[Event "Allsvenskan Div I 3 2022/2023: SS Manhem - SK Kamraterna II"]
[Site "Schackcentrum, Vegatan 20, Gothenburg, Sweden"]
[Date "2023.02.05"]
[Round "1.1"]
[White "Andersson, Johan"]
[Black "Welin, Mats"]
[Result "1-0"]
[TimeControl "90 minutes for 40 moves + 30 minutes for the rest of the game + 30 seconds per move from move one."]
[BlackTitle "FM"]
[WhiteFideId "1703935"]
[BlackFideId "1705180"]
[WhiteElo "2149"]
[BlackElo "2302"]

1. e4 {[%clk 01:30:53]} {[%emt 00:00:07]} e5 {[%clk 01:29:49]} {[%emt
00:01:11]} 2. Nf3 {[%clk 01:31:13]} {[%emt 00:00:10]} Nc6 {[%clk 01:29:49]}
{[%emt 00:00:31]} 3. c3 {[%clk 01:31:31]} {[%emt 00:00:12]} Nf6 {[%clk
01:29:24]} {[%emt 00:00:55]} 4. d4 {[%clk 01:31:49]} {[%emt 00:00:11]} exd4
{[%clk 01:28:59]} {[%emt 00:00:55]} 5. e5 {[%clk 01:32:05]} {[%emt 00:00:13]}
Nd5 {[%clk 01:28:45]} {[%emt 00:00:45]} 6. Qb3 {[%clk 01:32:15]} {[%emt
00:00:20]} Nb6 {[%clk 01:26:05]} {[%emt 00:03:11]} 7. cxd4 {[%clk 01:32:34]}
{[%emt 00:00:11]} d5 {[%clk 01:26:09]} {[%emt 00:00:25]} 8. a3 {[%clk
01:32:10]} {[%emt 00:00:54]} Bg4 {[%clk 01:25:42]} {[%emt 00:00:57]} 9. Nbd2
{[%clk 01:32:00]} {[%emt 00:00:40]} Qd7 {[%clk 01:23:19]} {[%emt 00:02:53]} 10.
Bd3 {[%clk 01:28:45]} {[%emt 00:03:44]} Be7 {[%clk 01:12:40]} {[%emt 00:11:10]}
11. Qc2 {[%clk 01:22:00]} {[%emt 00:07:14]} a5 {[%clk 01:11:05]} {[%emt
00:02:06]} 12. h3 {[%clk 01:12:58]} {[%emt 00:09:32]} Bh5 {[%clk 01:09:01]}
{[%emt 00:02:34]} 13. Bf5 {[%clk 01:04:38]} {[%emt 00:08:50]} Qd8 {[%clk
01:08:27]} {[%emt 00:01:04]} 14. O-O {[%clk 00:56:24]} {[%emt 00:08:43]} Bg6
{[%clk 01:02:22]} {[%emt 00:06:35]} 15. e6 {[%clk 00:51:34]} {[%emt 00:05:21]}
Qd6 {[%clk 00:49:01]} {[%emt 00:13:51]} 16. Re1 {[%clk 00:43:30]} {[%emt
00:08:34]} O-O {[%clk 00:45:16]} {[%emt 00:04:14]} 17. exf7+ {[%clk 00:29:38]}
{[%emt 00:14:23]} Rxf7 {[%clk 00:44:41]} {[%emt 00:01:05]} 18. Bxg6 {[%clk
00:29:59]} {[%emt 00:00:10]} hxg6 {[%clk 00:45:01]} {[%emt 00:00:09]} 19. Ne5
{[%clk 00:28:05]} {[%emt 00:02:24]} Rf5 {[%clk 00:29:19]} {[%emt 00:16:12]} 20.
Nxc6 {[%clk 00:25:52]} {[%emt 00:02:43]} bxc6 {[%clk 00:29:18]} {[%emt
00:00:32]} 21. Re2 {[%clk 00:16:25]} {[%emt 00:09:56]} Qf6 {[%clk 00:24:24]}
{[%emt 00:05:24]} 22. Nf1 {[%clk 00:14:26]} {[%emt 00:02:29]} Bd6 {[%clk
00:18:28]} {[%emt 00:06:26]} 23. Ne3 {[%clk 00:13:10]} {[%emt 00:01:45]} Rh5
{[%clk 00:16:50]} {[%emt 00:02:09]} 24. Qd3 {[%clk 00:10:43]} {[%emt 00:02:57]}
c5 {[%clk 00:16:16]} {[%emt 00:01:04]} 25. dxc5 {[%clk 00:09:24]} {[%emt
00:01:49]} Bxc5 {[%clk 00:16:30]} {[%emt 00:00:16]} 26. Rc2 {[%clk 00:08:41]}
{[%emt 00:01:13]} Bd6 {[%clk 00:14:04]} {[%emt 00:02:56]} 27. Bd2 {[%clk
00:07:46]} {[%emt 00:01:25]} c5 {[%clk 00:11:17]} {[%emt 00:03:17]} 28. Qf1
{[%clk 00:04:45]} {[%emt 00:03:30]} a4 {[%clk 00:07:07]} {[%emt 00:04:42]} 29.
g4 {[%clk 00:04:08]} {[%emt 00:01:05]} Re5 {[%clk 00:07:01]} {[%emt 00:00:37]}
30. Qg2 {[%clk 00:03:53]} {[%emt 00:00:45]} Qe6 {[%clk 00:05:33]} {[%emt
00:01:58]} 31. Rac1 {[%clk 00:03:04]} {[%emt 00:01:19]} Rf8 {[%clk 00:04:14]}
{[%emt 00:01:50]} 32. Ba5 {[%clk 00:01:28]} {[%emt 00:02:05]} Nd7 {[%clk
00:03:37]} {[%emt 00:01:07]} 33. Rd1 {[%clk 00:01:42]} {[%emt 00:00:16]} Nf6
{[%clk 00:01:49]} {[%emt 00:02:19]} 34. Nf1 {[%clk 00:00:51]} {[%emt 00:01:20]}
Ne4 {[%clk 00:01:40]} {[%emt 00:00:39]} 35. Be1 {[%clk 00:00:46]} {[%emt
00:00:35]} Ng5 {[%clk 00:01:33]} {[%emt 00:00:37]} 36. Ba5 {[%clk 00:00:53]}
{[%emt 00:00:24]} d4 {[%clk 00:01:33]} {[%emt 00:00:30]} 37. Kh1 {[%clk
00:00:53]} {[%emt 00:00:29]} Nf3 {[%clk 00:01:08]} {[%emt 00:00:55]} 38. Ng3
{[%clk 00:01:05]} {[%emt 00:00:18]} Qb3 {[%clk 00:30:00]} 1-0

[Event "Allsvenskan Div I 3 2022/2023: SS Manhem - SK Kamraterna II"]
[Site "Schackcentrum, Vegatan 20, Gothenburg, Sweden"]
[Date "2023.02.05"]
[Round "1.2"]
[White "Akesson, Joel"]
[Black "Al Waeli, Laith"]
[Result "1-0"]
[TimeControl "90 minutes for 40 moves + 30 minutes for the rest of the game + 30 seconds per move from move one."]
[WhiteTitle "FM"]
[BlackTitle "FM"]
[WhiteFideId "1705040"]
[BlackFideId "4801059"]
[WhiteElo "2205"]
[BlackElo "2084"]

1. c4 {[%clk 01:30:57]} {[%emt 00:00:03]} Nf6 {[%clk 01:27:38]} {[%emt
00:03:22]} 2. g3 {[%clk 01:31:18]} {[%emt 00:00:09]} g6 {[%clk 01:27:03]}
{[%emt 00:01:06]} 3. Bg2 {[%clk 01:31:37]} {[%emt 00:00:10]} Bg7 {[%clk
01:27:00]} {[%emt 00:00:31]} 4. Nc3 {[%clk 01:31:50]} {[%emt 00:00:19]} O-O
{[%clk 01:26:34]} {[%emt 00:00:55]} 5. d3 {[%clk 01:31:19]} {[%emt 00:01:02]}
d6 {[%clk 01:26:29]} {[%emt 00:00:36]} 6. Rb1 {[%clk 01:31:22]} {[%emt
00:00:26]} c5 {[%clk 01:25:14]} {[%emt 00:01:45]} 7. a3 {[%clk 01:29:06]}
{[%emt 00:02:46]} Nc6 {[%clk 01:22:58]} {[%emt 00:02:47]} 8. b4 {[%clk
01:21:40]} {[%emt 00:07:56]} Rb8 {[%clk 01:04:15]} {[%emt 00:19:13]} 9. Bd2
{[%clk 01:05:47]} {[%emt 00:16:22]} Bd7 {[%clk 00:57:10]} {[%emt 00:07:35]} 10.
b5 {[%clk 00:58:53]} {[%emt 00:07:25]} Nd4 {[%clk 00:57:17]} {[%emt 00:00:23]}
11. e3 {[%clk 00:56:07]} {[%emt 00:03:16]} Nf5 {[%clk 00:48:16]} {[%emt
00:09:31]} 12. Nge2 {[%clk 00:51:55]} {[%emt 00:04:41]} e5 {[%clk 00:45:20]}
{[%emt 00:03:26]} 13. O-O {[%clk 00:48:44]} {[%emt 00:03:41]} Re8 {[%clk
00:38:51]} {[%emt 00:06:58]} 14. Ne4 {[%clk 00:42:18]} {[%emt 00:06:57]} Nxe4
{[%clk 00:29:24]} {[%emt 00:09:57]} 15. Bxe4 {[%clk 00:36:28]} {[%emt
00:06:19]} h5 {[%clk 00:18:36]} {[%emt 00:11:19]} 16. Nc3 {[%clk 00:29:29]}
{[%emt 00:07:29]} Bh6 {[%clk 00:15:14]} {[%emt 00:03:52]} 17. Nd5 {[%clk
00:24:34]} {[%emt 00:05:25]} Ng7 {[%clk 00:11:11]} {[%emt 00:04:33]} 18. f4
{[%clk 00:15:32]} {[%emt 00:09:32]} exf4 {[%clk 00:09:34]} {[%emt 00:02:07]} 19.
gxf4 {[%clk 00:13:14]} {[%emt 00:02:48]} Bf5 {[%clk 00:09:06]} {[%emt
00:00:59]} 20. Bc3 {[%clk 00:11:03]} {[%emt 00:02:40]} Re6 {[%clk 00:07:24]}
{[%emt 00:02:12]} 21. Bxg7 {[%clk 00:09:31]} {[%emt 00:02:03]} Bg4 {[%clk
00:04:02]} {[%emt 00:03:52]} 22. Bf3 {[%clk 00:07:58]} {[%emt 00:02:02]} Bxg7
{[%clk 00:02:17]} {[%emt 00:02:16]} 23. Bxg4 {[%clk 00:07:42]} {[%emt
00:00:44]} hxg4 {[%clk 00:02:42]} {[%emt 00:00:07]} 24. Qxg4 {[%clk 00:07:52]}
{[%emt 00:00:18]} f5 {[%clk 00:02:37]} {[%emt 00:00:37]} 25. Qg2 {[%clk
00:07:08]} {[%emt 00:01:13]} Kf7 {[%clk 00:01:48]} {[%emt 00:01:20]} 26. Rbe1
{[%clk 00:05:51]} {[%emt 00:01:46]} Qd7 {[%clk 00:01:01]} {[%emt 00:01:17]} 27.
b6 {[%clk 00:05:10]} {[%emt 00:01:11]} axb6 {[%clk 00:00:56]} {[%emt 00:00:35]}
28. Nxb6 {[%clk 00:05:33]} {[%emt 00:00:06]} Qc6 {[%clk 00:01:08]} {[%emt
00:00:19]} 29. Nd5 {[%clk 00:05:54]} {[%emt 00:00:08]} Rbe8 {[%clk 00:01:19]}
{[%emt 00:00:20]} 30. Rb1 {[%clk 00:06:02]} {[%emt 00:00:22]} Kg8 {[%clk
00:00:37]} {[%emt 00:01:12]} 31. Rb6 {[%clk 00:05:23]} {[%emt 00:01:09]} Qc8
{[%clk 00:00:34]} {[%emt 00:00:33]} 32. Rfb1 {[%clk 00:04:54]} {[%emt
00:00:58]} Qa8 {[%clk 00:00:36]} {[%emt 00:00:30]} 33. Nc7 {[%clk 00:04:50]}
{[%emt 00:00:34]} Qxa3 {[%clk 00:00:45]} {[%emt 00:00:21]} 34. Nxe6 {[%clk
00:05:00]} {[%emt 00:00:20]} Rxe6 {[%clk 00:01:06]} {[%emt 00:00:08]} 35. Qd5
{[%clk 00:05:20]} {[%emt 00:00:08]} 1-0

[Event "Allsvenskan Div I 3 2022/2023: SS Manhem - SK Kamraterna II"]
[Site "Schackcentrum, Vegatan 20, Gothenburg, Sweden"]
[Date "2023.02.05"]
[Round "1.3"]
[White "Borvander, Tom"]
[Black "Lindholm, Gustav"]
[Result "0-1"]
[TimeControl "90 minutes for 40 moves + 30 minutes for the rest of the game + 30 seconds per move from move one."]
[WhiteFideId "1707388"]
[BlackFideId "1736515"]
[WhiteElo "2048"]
[BlackElo "2120"]

1. d4 {[%clk 01:30:53]} {[%emt 00:00:07]} d5 {[%clk 01:30:53]} {[%emt
00:00:07]} 2. c4 {[%clk 01:31:06]} {[%emt 00:00:17]} c6 {[%clk 01:31:19]}
{[%emt 00:00:04]} 3. Nf3 {[%clk 01:31:09]} {[%emt 00:00:28]} Nf6 {[%clk
01:31:43]} {[%emt 00:00:05]} 4. Qc2 {[%clk 01:30:48]} {[%emt 00:00:52]} dxc4
{[%clk 01:32:08]} {[%emt 00:00:05]} 5. Qxc4 {[%clk 01:30:55]} {[%emt 00:00:22]}
Bf5 {[%clk 01:32:33]} {[%emt 00:00:05]} 6. Nc3 {[%clk 01:30:07]} {[%emt
00:01:19]} e6 {[%clk 01:32:56]} {[%emt 00:00:06]} 7. g3 {[%clk 01:26:15]}
{[%emt 00:04:22]} Nbd7 {[%clk 01:33:09]} {[%emt 00:00:17]} 8. Bg2 {[%clk
01:26:08]} {[%emt 00:00:39]} Be7 {[%clk 01:31:45]} {[%emt 00:01:52]} 9. O-O
{[%clk 01:25:41]} {[%emt 00:00:58]} O-O {[%clk 01:24:57]} {[%emt 00:07:16]} 10.
e3 {[%clk 01:10:33]} {[%emt 00:15:39]} Ne4 {[%clk 01:20:48]} {[%emt 00:04:38]}
11. Rd1 {[%clk 01:04:48]} {[%emt 00:06:13]} Qc7 {[%clk 01:13:52]} {[%emt
00:07:28]} 12. Bd2 {[%clk 00:58:56]} {[%emt 00:06:22]} Rac8 {[%clk 01:08:50]}
{[%emt 00:05:32]} 13. Rac1 {[%clk 00:56:53]} {[%emt 00:02:34]} Rfd8 {[%clk
01:00:21]} {[%emt 00:08:59]} 14. Be1 {[%clk 00:55:44]} {[%emt 00:01:40]} Qb8
{[%clk 00:55:20]} {[%emt 00:05:30]} 15. b4 {[%clk 00:52:19]} {[%emt 00:03:56]}
Nxc3 {[%clk 00:45:13]} {[%emt 00:10:37]} 16. Bxc3 {[%clk 00:50:27]} {[%emt
00:02:20]} Be4 {[%clk 00:45:29]} {[%emt 00:00:15]} 17. Qe2 {[%clk 00:49:56]}
{[%emt 00:01:01]} Nb6 {[%clk 00:42:05]} {[%emt 00:03:54]} 18. Ne5 {[%clk
00:48:03]} {[%emt 00:02:23]} Bxg2 {[%clk 00:42:16]} {[%emt 00:00:20]} 19. Kxg2
{[%clk 00:48:27]} {[%emt 00:00:06]} Nd5 {[%clk 00:42:34]} {[%emt 00:00:12]} 20.
Qb2 {[%clk 00:47:17]} {[%emt 00:01:39]} Nxc3 {[%clk 00:42:04]} {[%emt
00:01:00]} 21. Qxc3 {[%clk 00:47:15]} {[%emt 00:00:32]} Qd6 {[%clk 00:42:16]}
{[%emt 00:00:18]} 22. a3 {[%clk 00:46:51]} {[%emt 00:00:54]} Qd5+ {[%clk
00:38:30]} {[%emt 00:04:16]} 23. Kg1 {[%clk 00:46:12]} {[%emt 00:01:10]} h5
{[%clk 00:38:06]} {[%emt 00:00:53]} 24. Qc4 {[%clk 00:42:27]} {[%emt 00:04:15]}
a5 {[%clk 00:32:00]} {[%emt 00:06:36]} 25. Rb1 {[%clk 00:39:51]} {[%emt
00:03:06]} axb4 {[%clk 00:26:21]} {[%emt 00:06:08]} 26. axb4 {[%clk 00:40:04]}
{[%emt 00:00:17]} f6 {[%clk 00:24:12]} {[%emt 00:02:40]} 27. Qxd5 {[%clk
00:40:20]} {[%emt 00:00:14]} Rxd5 {[%clk 00:24:04]} {[%emt 00:00:39]} 28. Nd3
{[%clk 00:40:30]} {[%emt 00:00:20]} Rb5 {[%clk 00:21:44]} {[%emt 00:02:47]} 29.
Rb2 {[%clk 00:37:35]} {[%emt 00:03:28]} Ra8 {[%clk 00:19:32]} {[%emt 00:02:41]}
30. Kf1 {[%clk 00:36:54]} {[%emt 00:01:12]} Kf7 {[%clk 00:19:41]} {[%emt
00:00:20]} 31. Ke2 {[%clk 00:36:37]} {[%emt 00:00:47]} Ra4 {[%clk 00:19:23]}
{[%emt 00:00:47]} 32. Rdb1 {[%clk 00:36:58]} {[%emt 00:00:09]} e5 {[%clk
00:17:22]} {[%emt 00:02:32]} 33. dxe5 {[%clk 00:32:06]} {[%emt 00:05:23]} fxe5
{[%clk 00:17:29]} {[%emt 00:00:22]} 34. e4 {[%clk 00:31:57]} {[%emt 00:00:39]}
g5 {[%clk 00:13:32]} {[%emt 00:04:27]} 35. f3 {[%clk 00:31:59]} {[%emt
00:00:28]} Ke6 {[%clk 00:11:47]} {[%emt 00:02:15]} 36. h3 {[%clk 00:30:51]}
{[%emt 00:01:38]} b6 {[%clk 00:07:06]} {[%emt 00:05:11]} 37. Kd2 {[%clk
00:27:08]} {[%emt 00:04:13]} Ra6 {[%clk 00:03:32]} {[%emt 00:04:03]} 38. Kc3
{[%clk 00:26:26]} {[%emt 00:01:13]} Kd6 {[%clk 00:01:50]} {[%emt 00:02:11]} 39.
Kc4 {[%clk 00:26:30]} {[%emt 00:00:27]} Ra3 {[%clk 00:00:54]} {[%emt 00:01:25]}
40. Rd1 {[%clk 00:17:13]} {[%emt 00:09:48]} Rd5 {[%clk 00:00:31]} {[%emt
00:00:53]} 41. Rb3 {[%clk 00:16:59]} {[%emt 00:00:44]} Rd4+ {[%clk 00:29:37]}
{[%emt 00:01:24]} 42. Kc3 {[%clk 00:47:22]} {[%emt 00:00:07]} Ra2 {[%clk
00:27:33]} {[%emt 00:02:33]} 43. f4 {[%clk 00:46:38]} {[%emt 00:01:15]} Bf6
{[%clk 00:24:02]} {[%emt 00:04:01]} 44. Re1 {[%clk 00:44:12]} {[%emt 00:02:55]}
b5 {[%clk 00:17:29]} {[%emt 00:07:05]} 45. fxe5+ {[%clk 00:37:24]} {[%emt
00:07:17]} Bxe5 {[%clk 00:17:47]} {[%emt 00:00:12]} 46. Nxe5 {[%clk 00:37:41]}
{[%emt 00:00:14]} Kxe5 {[%clk 00:18:09]} {[%emt 00:00:07]} 47. Rf1 {[%clk
00:37:43]} {[%emt 00:00:29]} Rxe4 {[%clk 00:18:10]} {[%emt 00:00:28]} 48. Kd3
{[%clk 00:37:20]} {[%emt 00:00:54]} Rg2 {[%clk 00:17:53]} {[%emt 00:00:45]} 49.
Rf3 {[%clk 00:37:37]} {[%emt 00:00:13]} g4 {[%clk 00:18:06]} {[%emt 00:00:17]}
0-1

[Event "Allsvenskan Div I 3 2022/2023: SS Manhem - SK Kamraterna II"]
[Site "Schackcentrum, Vegatan 20, Gothenburg, Sweden"]
[Date "2023.02.05"]
[Round "1.4"]
[White "Fendrich, David"]
[Black "Nyberg, Ulf"]
[Result "0-1"]
[TimeControl "90 minutes for 40 moves + 30 minutes for the rest of the game + 30 seconds per move from move one."]
[WhiteFideId "1705725"]
[BlackFideId "1705083"]
[WhiteElo "2174"]
[BlackElo "2074"]

1. g3 {[%clk 01:30:51]} {[%emt 00:00:06]} d5 {[%clk 01:29:41]} {[%emt
00:01:21]} 2. c4 {[%clk 01:31:14]} {[%emt 00:00:08]} d4 {[%clk 01:26:07]}
{[%emt 00:04:04]} 3. Nf3 {[%clk 01:31:04]} {[%emt 00:00:40]} Nc6 {[%clk
01:26:13]} {[%emt 00:00:24]} 4. Bg2 {[%clk 01:30:57]} {[%emt 00:00:36]} e5
{[%clk 01:26:19]} {[%emt 00:00:23]} 5. d3 {[%clk 01:30:16]} {[%emt 00:01:12]}
Nf6 {[%clk 01:26:24]} {[%emt 00:00:26]} 6. O-O {[%clk 01:30:32]} {[%emt
00:00:14]} Be7 {[%clk 01:26:23]} {[%emt 00:00:30]} 7. b4 {[%clk 01:30:31]}
{[%emt 00:00:33]} Nd7 {[%clk 01:11:52]} {[%emt 00:14:59]} 8. b5 {[%clk
01:27:51]} {[%emt 00:03:10]} Ncb8 {[%clk 01:09:29]} {[%emt 00:02:54]} 9. e3
{[%clk 01:27:20]} {[%emt 00:01:01]} dxe3 {[%clk 01:05:04]} {[%emt 00:04:54]} 10.
Bxe3 {[%clk 01:26:21]} {[%emt 00:01:29]} O-O {[%clk 01:05:07]} {[%emt
00:00:27]} 11. Nc3 {[%clk 01:24:04]} {[%emt 00:02:48]} Re8 {[%clk 01:03:35]}
{[%emt 00:02:02]} 12. d4 {[%clk 01:14:11]} {[%emt 00:10:23]} exd4 {[%clk
01:02:52]} {[%emt 00:01:13]} 13. Nxd4 {[%clk 01:04:06]} {[%emt 00:10:35]} Nf6
{[%clk 00:55:18]} {[%emt 00:08:03]} 14. Nd5 {[%clk 00:59:29]} {[%emt 00:05:08]}
Nxd5 {[%clk 00:53:46]} {[%emt 00:02:01]} 15. Bxd5 {[%clk 00:59:38]} {[%emt
00:00:22]} Nd7 {[%clk 00:53:13]} {[%emt 00:01:02]} 16. Bxf7+ {[%clk 00:50:15]}
{[%emt 00:09:54]} Kxf7 {[%clk 00:51:52]} {[%emt 00:01:51]} 17. Qh5+ {[%clk
00:49:11]} {[%emt 00:01:34]} Kg8 {[%clk 00:51:37]} {[%emt 00:00:44]} 18. Bh6
{[%clk 00:05:27]} {[%emt 00:44:14]} Nf6 {[%clk 00:40:42]} {[%emt 00:11:25]} 19.
Qg5 {[%clk 00:05:49]} {[%emt 00:00:08]} Bf8 {[%clk 00:40:41]} {[%emt 00:00:31]}
20. Rad1 {[%clk 00:05:02]} {[%emt 00:01:18]} Qe7 {[%clk 00:39:37]} {[%emt
00:01:33]} 21. Nf3 {[%clk 00:02:05]} {[%emt 00:03:28]} Bh3 {[%clk 00:31:27]}
{[%emt 00:08:40]} 22. Rfe1 {[%clk 00:02:26]} {[%emt 00:00:09]} Qc5 {[%clk
00:29:37]} {[%emt 00:02:20]} 23. Bxg7 {[%clk 00:01:46]} {[%emt 00:01:10]} Qxg5
{[%clk 00:29:03]} {[%emt 00:01:03]} 24. Nxg5 {[%clk 00:02:13]} {[%emt
00:00:04]} Kxg7 {[%clk 00:26:21]} {[%emt 00:03:11]} 25. Nxh3 {[%clk 00:02:34]}
{[%emt 00:00:10]} Bb4 {[%clk 00:26:11]} {[%emt 00:00:40]} 26. Rxe8 {[%clk
00:02:47]} {[%emt 00:00:16]} Rxe8 {[%clk 00:26:28]} {[%emt 00:00:14]} 27. Nf4
{[%clk 00:02:51]} {[%emt 00:00:26]} Bd6 {[%clk 00:25:28]} {[%emt 00:01:29]} 28.
Nd3 {[%clk 00:02:41]} {[%emt 00:00:40]} b6 {[%clk 00:23:45]} {[%emt 00:02:13]}
29. Kf1 {[%clk 00:02:48]} {[%emt 00:00:23]} Re4 {[%clk 00:20:48]} {[%emt
00:03:27]} 30. Rc1 {[%clk 00:02:05]} {[%emt 00:01:14]} Nd7 {[%clk 00:20:23]}
{[%emt 00:00:54]} 31. Rc2 {[%clk 00:01:08]} {[%emt 00:01:28]} Kf6 {[%clk
00:15:59]} {[%emt 00:04:54]} 32. f3 {[%clk 00:01:22]} {[%emt 00:00:16]} Re3
{[%clk 00:15:00]} {[%emt 00:01:27]} 33. Ne1 {[%clk 00:01:46]} {[%emt 00:00:07]}
Bb4 {[%clk 00:14:40]} {[%emt 00:00:50]} 34. Ng2 {[%clk 00:01:24]} {[%emt
00:00:53]} Rxf3+ {[%clk 00:14:05]} {[%emt 00:01:05]} 35. Ke2 {[%clk 00:01:50]}
{[%emt 00:00:03]} Rc3 {[%clk 00:12:02]} {[%emt 00:02:32]} 36. Rd2 {[%clk
00:00:58]} {[%emt 00:01:23]} Nc5 {[%clk 00:08:49]} {[%emt 00:03:44]} 37. Nf4
{[%clk 00:00:54]} {[%emt 00:00:34]} Rxc4 {[%clk 00:08:36]} {[%emt 00:00:42]} 38.
Nd5+ {[%clk 00:00:42]} {[%emt 00:00:42]} Ke5 {[%clk 00:08:13]} {[%emt
00:00:52]} 39. Ne3 {[%clk 00:00:46]} {[%emt 00:00:27]} Rc1 {[%clk 00:05:46]}
{[%emt 00:02:57]} 40. Rd8 {[%clk 00:00:46]} {[%emt 00:00:31]} Ra1 {[%clk
00:03:32]} {[%emt 00:02:43]} 41. Rh8 {[%clk 00:18:38]} {[%emt 00:12:39]} Rxa2+
{[%clk 00:31:46]} {[%emt 00:02:15]} 42. Kf3 {[%clk 00:18:59]} {[%emt 00:00:10]}
Ne6 {[%clk 00:27:27]} {[%emt 00:04:49]} 43. Ng4+ {[%clk 00:12:29]} {[%emt
00:07:00]} Kf5 {[%clk 00:26:15]} {[%emt 00:01:41]} 44. Ne3+ {[%clk 00:11:15]}
{[%emt 00:01:44]} Kg6 {[%clk 00:25:38]} {[%emt 00:01:06]} 45. h4 {[%clk
00:11:36]} {[%emt 00:00:10]} Bf8 {[%clk 00:22:41]} {[%emt 00:03:28]} 46. Rg8+
{[%clk 00:11:20]} {[%emt 00:00:46]} Kf7 {[%clk 00:22:56]} {[%emt 00:00:15]} 47.
Rg4 {[%clk 00:11:41]} {[%emt 00:00:09]} Rb2 {[%clk 00:21:02]} {[%emt 00:02:22]}
48. Ra4 {[%clk 00:09:25]} {[%emt 00:02:47]} Rxb5 {[%clk 00:20:45]} {[%emt
00:00:46]} 49. Rxa7 {[%clk 00:09:46]} {[%emt 00:00:11]} Rb3 {[%clk 00:19:59]}
{[%emt 00:01:16]} 50. Ke2 {[%clk 00:09:53]} {[%emt 00:00:23]} Bc5 {[%clk
00:19:30]} {[%emt 00:00:58]} 51. Nf5 {[%clk 00:09:11]} {[%emt 00:01:12]} Kf6
{[%clk 00:18:46]} {[%emt 00:01:15]} 52. g4 {[%emt 00:01:22]} h5 {[%clk
00:19:00]} 53. Nh6 {[%clk 00:08:48]} {[%emt 00:00:16]} hxg4 {[%clk 00:18:02]}
{[%emt 00:01:28]} 54. Nxg4+ {[%clk 00:09:13]} {[%emt 00:00:06]} Kf5 {[%clk
00:17:51]} {[%emt 00:00:41]} 55. Nh6+ {[%clk 00:09:35]} {[%emt 00:00:07]} Ke4
{[%clk 00:17:30]} {[%emt 00:00:51]} 56. Ng4 {[%clk 00:08:42]} {[%emt 00:01:23]}
Rb2+ {[%clk 00:17:23]} {[%emt 00:00:37]} 57. Kd1 {[%clk 00:08:50]} {[%emt
00:00:22]} Bd4 {[%clk 00:16:50]} {[%emt 00:01:02]} 58. Ra8 {[%clk 00:05:33]}
{[%emt 00:03:49]} Rg2 {[%clk 00:14:19]} {[%emt 00:02:59]} 59. Nh6 {[%clk
00:05:24]} {[%emt 00:00:39]} Rg6 {[%clk 00:14:08]} {[%emt 00:00:42]} 60. Nf7
{[%clk 00:05:32]} {[%emt 00:00:23]} Kd3 {[%clk 00:13:55]} {[%emt 00:00:41]} 61.
Ra3+ {[%clk 00:05:52]} {[%emt 00:00:11]} Ke4 {[%clk 00:13:47]} {[%emt
00:00:38]} 62. Rh3 {[%clk 00:02:05]} {[%emt 00:04:16]} Rg7 {[%clk 00:13:14]}
{[%emt 00:01:04]} 63. Nh6 {[%clk 00:02:12]} {[%emt 00:00:23]} Be3 {[%clk
00:12:11]} {[%emt 00:01:33]} 64. Nf5 {[%clk 00:01:37]} {[%emt 00:01:05]} Rg1+
{[%clk 00:12:23]} {[%emt 00:00:18]} 65. Kc2 {[%clk 00:01:48]} {[%emt 00:00:20]}
Nd4+ {[%clk 00:12:09]} {[%emt 00:00:44]} 66. Nxd4 {[%clk 00:02:06]} {[%emt
00:00:11]} Bxd4 {[%clk 00:12:32]} {[%emt 00:00:07]} 67. h5 {[%clk 00:02:23]}
{[%emt 00:00:14]} Rg2+ {[%clk 00:12:10]} {[%emt 00:00:52]} 68. Kb3 {[%clk
00:02:41]} {[%emt 00:00:11]} Rf2 {[%clk 00:11:25]} {[%emt 00:01:15]} 69. Rh4+
{[%clk 00:02:59]} {[%emt 00:00:13]} Rf4 {[%clk 00:11:42]} {[%emt 00:00:12]} 70.
Rh1 {[%clk 00:03:14]} {[%emt 00:00:15]} Kd5 {[%clk 00:11:09]} {[%emt 00:01:03]}
71. h6 {[%clk 00:03:31]} {[%emt 00:00:13]} Rf8 {[%clk 00:11:31]} {[%emt
00:00:08]} 72. h7 {[%clk 00:03:41]} {[%emt 00:00:20]} c5 {[%clk 00:11:27]}
{[%emt 00:00:34]} 73. Rh5+ {[%clk 00:03:42]} {[%emt 00:00:30]} Kc6 {[%clk
00:11:22]} {[%emt 00:00:34]} 74. Rh6+ {[%clk 00:03:51]} {[%emt 00:00:20]} Kb5
{[%clk 00:10:57]} {[%emt 00:00:56]} 75. Rh5 {[%clk 00:03:51]} {[%emt 00:00:30]}
Rh8 {[%clk 00:11:00]} {[%emt 00:00:27]} 76. Rh4 {[%clk 00:03:35]} {[%emt
00:00:46]} c4+ {[%clk 00:11:05]} {[%emt 00:00:25]} 77. Kc2 {[%clk 00:03:55]}
{[%emt 00:00:10]} Kc5 {[%clk 00:11:07]} {[%emt 00:00:29]} 78. Rh5+ {[%clk
00:04:12]} {[%emt 00:00:13]} Kb4 {[%clk 00:11:26]} {[%emt 00:00:10]} 79. Rh4
{[%clk 00:04:18]} {[%emt 00:00:24]} Bg7 {[%clk 00:11:38]} {[%emt 00:00:18]} 80.
Rh1 {[%clk 00:04:07]} {[%emt 00:00:41]} b5 {[%clk 00:11:49]} {[%emt 00:00:19]}
81. Rh4 {[%clk 00:02:50]} {[%emt 00:01:47]} Kc5 {[%clk 00:11:39]} {[%emt
00:00:40]} 82. Rh5+ {[%clk 00:03:15]} {[%emt 00:00:05]} Kc6 {[%clk 00:12:01]}
{[%emt 00:00:09]} 83. Rh4 {[%clk 00:03:32]} {[%emt 00:00:12]} Kd5 {[%clk
00:12:12]} {[%emt 00:00:19]} 84. Rh5+ {[%clk 00:02:58]} {[%emt 00:01:04]} Be5
{[%clk 00:12:41]} {[%emt 00:00:01]} 0-1